[Event "French Top 16-A 2024"]
[Site "Chartres"]
[Date "2024.06.01"]
[Round "1.15"]
[White "Lemonnier, Remi"]
[Black "Mathieu, Phileas"]
[Result "0-1"]
[ECO "D00"]
[WhiteElo "2022"]
[BlackElo "2302"]
[Annotator "RC"]
[PlyCount "96"]
[EventDate "2024.06.01"]
[EventType "team-tourn"]
[EventCountry "FRA"]
[SourceTitle "playchess.com"]
[Source "ChessBase"]
[SourceQuality "1"]
[TimeControl "40/5400+30:1800+30"]

1. d4 {[%emt 0:00:02]} Nf6 {[%emt 0:00:43]} 2. Nc3 {[%emt 0:00:13]} d5 {[%emt 0:00:07]} 3. Bf4 {[%emt 0:00:09]} a6 {[%emt 0:00:50]} 4. e3 {[%emt 0:00:33]} c5 {[%emt 0:00:18]} 5. dxc5 {[%emt 0:01:08]} Nc6 {[%emt 0:03:22]} 6. a3 {[%emt 0:00:48]} e5 {[%emt 0:18:09]} 7. Bg5 {[%emt 0:00:23]} Be6 {[%emt 0:00:02]} 8. b4 {[%emt 0:05:53]} Be7 {[%emt 0:06:22]} 9. Nf3 {[%emt 0:04:56]} O-O {[%emt 0:05:24]} 10. Be2 {[%emt 0:02:52]} Qc7 {[%emt 0:04:15]} 11. O-O {[%emt 0:09:17]} Rad8 {[%emt 0:00:56]} 12. Qb1 {[%emt 0:11:51]} h6 {[%emt 0:05:02]} 13. Bh4 {[%emt 0:01:40]} g5 {[%emt 0:00:14]} 14. Bg3 {[%emt 0:00:19]} Ne4 {[%emt 0:03:53]} 15. Qb2 {[%emt 0:07:39]} Nxg3 {[%emt 0:12:46]} 16. hxg3 {[%emt 0:01:43]} Bf6 {[%emt 0:01:05]} 17. e4 {[%emt 0:06:45]} d4 {[%emt 0:16:28]} 18. Na4 {[%emt 0:01:05]} Bg7 {[%emt 0:02:01]} 19. Nd2 {[%emt 0:04:04]} f5 {[%emt 0:02:22]} 20. Nb6 {[%emt 0:05:36]} Qf7 {[%emt 0:03:22]} 21. Nbc4 {[%emt 0:10:25]} fxe4 {[%emt 0:06:07]} 22. Nd6 {[%emt 0:00:30]} Rxd6 {[%emt 0:00:00]} 23. cxd6 {[%emt 0:00:06]} d3 {[%emt 0:00:21]} 24. Bd1 {[%emt 0:06:16]} Nd4 {[%emt 0:00:01]} 25. cxd3 {[%emt 0:04:26]} exd3 {[%emt 0:00:01]} 26. Ne4 {[%emt 0:00:36]} Bd5 {[%emt 0:03:36]} 27. Nc3 {[%emt 0:04:04]} Bc6 {[%emt 0:00:48]} 28. Rb1 {[%emt 0:02:04]} Kh8 {[%emt 0:01:19]} 29. Qd2 {[%emt 0:00:50]} e4 {[%emt 0:00:52]} 30. a4 {[%emt 0:01:16]} b5 {[%emt 0:01:26]} 31. axb5 {[%emt 0:03:35]} axb5 {[%emt 0:00:01]} 32. d7 {[%emt 0:03:58]} Qxd7 {[%emt 0:00:31]} 33. Re1 {[%emt 0:00:21]} Qb7 {[%emt 0:01:27]} 34. Bg4 {[%emt 0:00:42]} Nc2 {[%emt 0:00:52]} 35. Rf1 {[%emt 0:00:30]} Na3 {[%emt 0:00:34]} 36. Rbd1 {[%emt 0:01:21]} Nc4 {[%emt 0:00:14]} 37. Qc1 {[%emt 0:00:04]} Qe7 {[%emt 0:00:43]} 38. f3 {[%emt 0:00:15]} d2 {[%emt 0:01:54]} 39. Rxd2 {[%emt 0:00:26]} Nxd2 {[%emt 0:00:42]} 40. Qxd2 {[%emt 0:00:01]} e3 {[%emt 0:00:39]} 41. Qc2 {[%emt 0:10:49]} Qxb4 {[%emt 0:02:26]} 42. Ne4 {[%emt 0:07:13]} Bd5 {[%emt 0:00:58]} 43. Rd1 {[%emt 0:07:55]} Bb3 {[%emt 0:09:46]} 44. Qb1 {[%emt 0:00:15]} e2 {[%emt 0:02:09]} 45. Re1 {[%emt 0:02:03]} Qd4+ {[%emt 0:00:08]} 46. Kh2 {[%emt 0:00:28]} Qd1 {[%emt 0:04:42]} 47. Nf2 {[%emt 0:05:11]} Qxb1 {[%emt 0:01:27]} 48. Rxb1 {[%emt 0:00:05]} Bc3 {[%emt 0:01:25]} 0-1

[Event "French Top 16-A 2024"]
[Site "Chartres"]
[Date "2024.06.01"]
[Round "1.16"]
[White "Benitah, Yohan"]
[Black "Hirth, Julien"]
[Result "0-1"]
[ECO "A58"]
[WhiteElo "2342"]
[BlackElo "2063"]
[Annotator "RC"]
[PlyCount "54"]
[EventDate "2024.06.01"]
[EventType "team-tourn"]
[EventCountry "FRA"]
[SourceTitle "playchess.com"]
[Source "ChessBase"]
[SourceQuality "1"]
[TimeControl "40/5400+30:1800+30"]

1. d4 {[%emt 0:00:03]} Nf6 {[%emt 0:00:09]} 2. c4 {[%emt 0:00:07]} c5 {[%emt 0:00:11]} 3. d5 {[%emt 0:01:09]} b5 {[%emt 0:00:11]} 4. cxb5 {[%emt 0:01:32]} a6 {[%emt 0:00:07]} 5. bxa6 {[%emt 0:00:39]} e6 {[%emt 0:00:13]} 6. dxe6 {[%emt 0:01:14]} fxe6 {[%emt 0:00:10]} 7. g3 {[%emt 0:00:33]} Be7 {[%emt 0:05:52]} 8. Bg2 {[%emt 0:03:24]} d5 {[%emt 0:00:32]} 9. Nf3 {[%emt 0:00:37]} Nc6 {[%emt 0:01:23]} 10. O-O {[%emt 0:05:59]} O-O {[%emt 0:01:07]} 11. Nc3 {[%emt 0:01:30]} Bxa6 {[%emt 0:02:27]} 12. b3 {[%emt 0:03:46]} h6 {[%emt 0:03:49]} 13. Bb2 {[%emt 0:02:14]} Qe8 {[%emt 0:00:48]} 14. Re1 {[%emt 0:02:56]} d4 {[%emt 0:18:19]} 15. Na4 {[%emt 0:05:56]} Rd8 {[%emt 0:00:33]} 16. Ba3 {[%emt 0:07:59]} Qh5 {[%emt 0:23:16]} 17. h3 {[%emt 0:12:10]} Ne4 {[%emt 0:01:33]} 18. Qc1 {[%emt 0:08:04]} Nxf2 {[%emt 0:10:58]} 19. Kxf2 {[%emt 0:09:01]} Bg5 {[%emt 0:00:10]} 20. g4 {[%emt 0:02:57]} Qh4+ {[%emt 0:07:32]} 21. Kg1 {[%emt 0:02:37]} Rxf3 {[%emt 0:00:08]} 22. exf3 {[%emt 0:08:06]} Bxc1 {[%emt 0:00:12]} 23. Raxc1 {[%emt 0:00:01]} d3 {[%emt 0:01:39]} 24. Rcd1 {[%emt 0:00:08]} d2 {[%emt 0:04:39]} 25. Re3 {[%emt 0:04:30]} Nd4 {[%emt 0:01:41]} 26. Bxc5 {[%emt 0:01:09]} Ne2+ {[%emt 0:02:39]} 27. Kh2 {[%emt 0:00:34]} Qg3+ {[%emt 0:00:12]} 0-1

[Event "French Top 16-A 2024"]
[Site "Chartres"]
[Date "2024.06.01"]
[Round "1.16"]
[White "Delorme, Laurie"]
[Black "Milliet, Sophie"]
[Result "0-1"]
[ECO "E46"]
[WhiteElo "2075"]
[BlackElo "2385"]
[Annotator "RC"]
[PlyCount "84"]
[EventDate "2024.06.01"]
[EventType "team-tourn"]
[EventCountry "FRA"]
[SourceTitle "playchess.com"]
[Source "ChessBase"]
[SourceQuality "1"]
[TimeControl "40/5400+30:1800+30"]

1. d4 {[%emt 0:00:23]} Nf6 {[%emt 0:00:13]} 2. c4 {[%emt 0:00:08]} e6 {[%emt 0:00:04]} 3. Nc3 {[%emt 0:00:08]} Bb4 {[%emt 0:00:04]} 4. e3 {[%emt 0:00:23]} O-O {[%emt 0:00:13]} 5. Bd2 {[%emt 0:00:26]} Re8 {[%emt 0:00:51]} 6. Nf3 {[%emt 0:09:44]} d6 {[%emt 0:00:32]} 7. a3 {[%emt 0:03:35]} Bxc3 {[%emt 0:00:07]} 8. Bxc3 {[%emt 0:00:04]} Ne4 {[%emt 0:00:06]} 9. Qc2 {[%emt 0:00:49]} Nxc3 {[%emt 0:01:03]} 10. Qxc3 {[%emt 0:00:12]} a5 {[%emt 0:11:26]} 11. Bd3 {[%emt 0:05:32]} Nd7 {[%emt 0:03:28]} 12. Qc2 {[%emt 0:05:44]} h6 {[%emt 0:05:17]} 13. g4 {[%emt 0:19:09]} Qf6 {[%emt 0:29:38]} 14. Be4 {[%emt 0:04:44]} d5 {[%emt 0:01:17]} 15. cxd5 {[%emt 0:09:42]} exd5 {[%emt 0:00:03]} 16. Bxd5 {[%emt 0:01:14]} Nb6 {[%emt 0:00:19]} 17. Be4 {[%emt 0:00:31]} Rxe4 {[%emt 0:12:27]} 18. Qxe4 {[%emt 0:00:35]} Be6 {[%emt 0:00:17]} 19. Nd2 {[%emt 0:05:58]} Bd5 {[%emt 0:00:13]} 20. Qf5 {[%emt 0:00:22]} Qxf5 {[%emt 0:02:05]} 21. gxf5 {[%emt 0:00:05]} Bxh1 {[%emt 0:00:03]} 22. f3 {[%emt 0:00:05]} Bg2 {[%emt 0:01:34]} 23. Kf2 {[%emt 0:00:11]} Bh3 {[%emt 0:00:03]} 24. e4 {[%emt 0:00:18]} Rd8 {[%emt 0:00:54]} 25. Kg3 {[%emt 0:02:04]} Bxf5 {[%emt 0:02:32]} 26. exf5 {[%emt 0:00:17]} Rxd4 {[%emt 0:01:13]} 27. Nb3 {[%emt 0:00:28]} Rd5 {[%emt 0:00:36]} 28. Rc1 {[%emt 0:00:27]} c6 {[%emt 0:03:46]} 29. Nc5 {[%emt 0:04:26]} Rxf5 {[%emt 0:03:45]} 30. Nxb7 {[%emt 0:01:19]} Rg5+ {[%emt 0:03:03]} 31. Kf2 {[%emt 0:12:09]} Rb5 {[%emt 0:00:09]} 32. Rxc6 {[%emt 0:03:22]} Rxb2+ {[%emt 0:00:09]} 33. Kg3 {[%emt 0:00:09]} a4 {[%emt 0:00:18]} 34. Na5 {[%emt 0:02:54]} Nd5 {[%emt 0:09:33]} 35. Rc5 {[%emt 0:08:01]} Ne3 {[%emt 0:00:32]} 36. Kf4 {[%emt 0:00:22]} Re2 {[%emt 0:01:12]} 37. Nc4 {[%emt 0:01:28]} g5+ {[%emt 0:01:12]} 38. Ke4 {[%emt 0:01:18]} Nxc4+ {[%emt 0:00:19]} 39. Kd3 {[%emt 0:00:02]} Re3+ {[%emt 0:01:29]} 40. Kxc4 {[%emt 0:00:05]} Rxa3 {[%emt 0:00:05]} 41. Kb4 {[%emt 0:04:14]} Rxf3 {[%emt 0:01:29]} 42. Kxa4 {[%emt 0:01:03]} Rf2 {[%emt 0:00:13]} 0-1

[Event "French Top 16-A 2024"]
[Site "Chartres"]
[Date "2024.06.01"]
[Round "2.1"]
[White "Erigaisi Arjun"]
[Black "Kunin, Vitaly"]
[Result "1-0"]
[ECO "C41"]
[WhiteElo "2762"]
[BlackElo "2525"]
[Annotator "TA"]
[PlyCount "55"]
[EventDate "2024.06.01"]
[EventType "team-tourn"]
[EventCountry "FRA"]
[SourceTitle "playchess.com"]
[Source "ChessBase"]
[SourceQuality "1"]
[TimeControl "40/5400+30:1800+30"]

{[%evp 9,55,28,22,23,27,19,25,18,32,28,15,24,43,39,57,63,65,58,70,87,121,125,235,237,368,330,356,350,381,359,364,297,404,366,351,367,1080,1112,29987,29988,29988,29989,29989,29990,29990,29991,29996,-439]} 1. e4 {[%emt 0:00:07]} e5 {[%emt 0:00:28]} 2. Nf3 {[%emt 0:00:54]} d6 {[%emt 0:00:18]} 3. d4 {[%emt 0:00:27]} exd4 {[%emt 0:00:12]} 4. Qxd4 {[%emt 0:06:59]} a6 {[%emt 0:00:21]} 5. Bg5 {[%emt 0:03:41]} Nc6 {[%emt 0:00:13]} 6. Qe3 {[%emt 0:00:05]} Be7 {[%emt 0:00:50]} 7. Nc3 {[%emt 0:00:32]} Bxg5 {[%emt 0:02:36]} 8. Nxg5 {[%emt 0:00:47][%cal Bf3g5,Bg5h3,Bh3f4][%mdl 32] White has an edge.} h6 {[%emt 0:00:36]} 9. Nh3 {[%emt 0:01:32]} Nf6 {[%emt 0:05:44]} 10. Nf4 {[%emt 0:03:13]} O-O {[%emt 0:01:29]} 11. O-O-O {[%emt 0:00:16]} b5 {[%emt 0:02:36][%cal Bb7b5,Bb5b4][%mdl 32]} 12. f3 {[%emt 0:00:23]} b4 {[%emt 0:13:23]} 13. Nce2 {[%emt 0:00:30] White is more active.} Ne5 {[%emt 0:00:29]} 14. g4 {[%emt 0:03:27][%cal Bg2g4,Bg4g5,Bg5h6][%mdl 32]} c5 {[%emt 0:02:53]} 15. h4 {[%emt 0:04:08]} Qa5 {[%emt 0:00:09]} (15... a5 $16 {keeps fighting.}) 16. Kb1 $18 {[%emt 0:01:04]} d5 {[%emt 0:09:15]} (16... Kh8 $142 17. Ng3 (17. Rxd6 $2 Nc4 $19) 17... Ng8) 17. g5 {[%emt 0:03:50]} ({Don't take} 17. Nxd5 Rd8 18. Nef4 Nxd5 19. exd5 (19. Nxd5 Be6 $16) (19. Rxd5 Bb7 $16) 19... Qc7 $18) (17. exd5 Nc4 18. Qb3 Nd6 $14) 17... d4 {[%emt 0:00:51]} 18. Qf2 {[%emt 0:07:11]} Nh7 {[%emt 0:05:09]} 19. gxh6 {[%emt 0:00:31] Strongly threatening Qg3.} g6 {[%emt 0:00:34]} 20. Qg3 {[%emt 0:02:36][%cal Of4g6] Black must now prevent Nxg6!} Re8 {[%emt 0:08:44]} 21. Rg1 {[%emt 0:07:44]} Kh8 {[%emt 0:06:15]} 22. Nc1 {[%emt 0:05:01]} Bb7 $2 {[%emt 0:02:18]} (22... Ra7 23. Be2 Qb6) 23. Ncd3 {[%emt 0:01:50] Intending Nxe5 and mate.} Nc6 {[%emt 0:09:45] [#]} 24. Nxg6+ $1 {[%emt 0:02:31][%mdl 512] White mates.} fxg6 {[%emt 0:00:12]} 25. Nf4 {[%emt 0:00:05]} Ne5 {[%emt 0:01:42]} 26. Nxg6+ {[%emt 0:00:31]} Nxg6 {[%emt 0:00:09]} 27. Qxg6 {[%emt 0:00:06][%csl Gg1,Gh6][%cal Rg6g7]} Rg8 {[%emt 0:01:32] [#]} 28. Qg7+ $3 {[%emt 0:00:06][%mdl 33280] Weighted Error Value: White=0.04 (flawless) /Black=0.51.  Mistake:       	---       	Black=3      Inaccurate:     	---       	Black=3      OK:         	White=9     	Black=7      Best:        	White=3     	---       . Loss on time!?} 1-0

[Event "French Top 16-A 2024"]
[Site "Chartres"]
[Date "2024.06.01"]
[Round "2.1"]
[White "Pichot, Alan"]
[Black "Amin, Bassem"]
[Result "1-0"]
[ECO "C54"]
[WhiteElo "2635"]
[BlackElo "2683"]
[Annotator "TA"]
[PlyCount "69"]
[EventDate "2024.06.01"]
[EventType "team-tourn"]
[EventCountry "FRA"]
[SourceTitle "playchess.com"]
[Source "ChessBase"]
[SourceQuality "1"]
[TimeControl "40/5400+30:1800+30"]

{[%evp 18,69,20,5,4,2,2,6,8,-5,1,-53,35,-27,-25,-24,-24,-120,-136,-121,-20,-56,-45,-83,-83,-83,-2,-16,43,41,77,143,166,125,120,122,217,241,312,312,317,210,211,154,207,203,982,1242,1339,1262,1258,1255,29980,29981]} 1. e4 {[%emt 0:00:58]} e5 {[%emt 0:01:01]} 2. Nf3 {[%emt 0:00:07]} Nc6 {[%emt 0:00:04]} 3. Bc4 {[%emt 0:00:27]} Bc5 {[%emt 0:00:59]} 4. d3 {[%emt 0:00:23]} Nf6 {[%emt 0:00:44]} 5. c3 {[%emt 0:00:37]} a6 {[%emt 1:30:12]} 6. O-O {[%emt 0:01:08]} d6 {[%emt 0:00:00]} 7. Bg5 {[%emt 0:01:37] 7.Re1 is setting a new trend. C54: Giuoco Piano: 4 c3 Nf6, main lines with 5 d4 and 5 d3.} h6 {[%emt 0:00:00]} 8. Bh4 {[%emt 0:00:09]} Ba7 {[%emt 0:00:00]} 9. a4 {[%emt 0:01:15]} Qe7 {[%emt 0:00:00]} 10. Nbd2 {[%emt 0:00:44]} g5 {[%emt 0:00:00]} 11. Bg3 {[%emt 0:00:14]} Nh7 {[%emt 0:00:00]} 12. b4 {[%emt 0:01:15]} Nf8 {[%emt 0:00:00]} 13. b5 {[%emt 0:00:39]} Na5 {[%emt 0:00:00]} 14. Bd5 {[%emt 0:00:56]} (14. bxa6 $11 bxa6 15. d4) 14... c6 {[%emt 0:00:00]} (14... Ng6 $15) 15. Ba2 {[%emt 0:04:03]} ({White should try} 15. bxc6 $14 bxc6 16. Ba2) 15... Ng6 $11 {[%emt 0:00:00]} 16. Kh1 {[%emt 0:02:18]} h5 {[%emt 0:00:00]} 17. h4 $146 {[%emt 0:00:58]} (17. h3 $1 $11 {keeps the balance.}) ({Predecessor:} 17. h3 g4 18. Ng1 gxh3 19. gxh3 h4 20. Bh2 Rg8 21. Rb1 Qg5 22. Ndf3 Qf6 23. bxa6 bxa6 {1-0 Firouzja,A (2777)-Tabatabaei,M (2689) Julius Baer Play In rapid 2023 (8.2)}) 17... gxh4 $17 {[%emt 0:00:00]} (17... Nxh4 $6 18. Bxh4 gxh4 19. Rb1 $11) 18. Bh2 {[%emt 0:00:12]} Bb6 {[%emt 0:00:00]} (18... axb5 19. Ng1 (19. axb5 h3 $15)) (18... cxb5 $6 19. axb5 axb5 (19... h3 20. bxa6 hxg2+ 21. Kxg2 $16) 20. Bd5 $11) ({Black should play} 18... h3 $17 {...hxg2+ would now be deadly.} 19. g3 axb5 (19... cxb5 20. axb5 axb5 21. Qb1 $15)) 19. Qb1 {[%emt 0:07:32]} Rb8 {[%emt 0:00:00]} 20. d4 {[%emt 0:08:58]} h3 {[%emt 0:00:00]} 21. g3 {[%emt 0:06:21]} O-O {[%emt 0:00:00]} (21... Bg4 $17) 22. Nh4 $11 {[%emt 0:16:30]} Qf6 {[%emt 0:00:00]} (22... Nxh4 23. gxh4 Kh8 24. Re1 $15) (22... Kh8 $11) 23. f4 $14 {[%emt 0:12:41]} Nxh4 {[%emt 0:00:00]} 24. gxh4 {[%emt 0:01:06]} exd4 {[%emt 0:00:00]} 25. f5 $1 {[%emt 0:07:30]} dxc3 {[%emt 0:00:00]} 26. Nf3 {[%emt 0:04:30]} cxb5 {[%emt 0:00:00] [#]} (26... Bd7 $16) 27. Ng5 $1 $18 {[%emt 0:06:04]} b4 {[%emt 0:00:00]} (27... Bd7 $6 28. Qd1 Nc4 (28... bxa4 29. Qxh5 Qg7 30. f6) 29. Bg1) 28. Qd1 {[%emt 0:03:37]} (28. Qxb4 Bc5 29. Qb1 (29. Qxa5 $2 b6 $19) 29... b5 30. axb5 Rxb5 $16 (30... axb5 31. Bd5 $15)) 28... b3 {[%emt 0:00:00]} 29. Bxb3 {[%emt 0:06:45]} Nxb3 {[%emt 0:00:00]} 30. Qxb3 {[%emt 0:00:10]} Bc5 {[%emt 0:00:44] [#]} ({Don't play} 30... Be3 31. Rad1 Bc5 32. Bf4 $16) (30... Bd4 $16) 31. Rg1 $1 $18 {[%emt 0:00:24]} Kh8 $2 {[%emt 0:03:56]} ({Don't go for} 31... Bxg1 $2 32. Rxg1 Re8 33. Nxf7+ Kh7 34. Rg6 $18) (31... Bd7) 32. Qd1 $1 $18 {[%emt 0:00:46]} Qh6 {[%emt 0:00:07]} 33. Bf4 {[%emt 0:00:44]} c2 {[%emt 0:03:41]} 34. Qf3 {[%emt 0:01:38]} Bxg1 {[%emt 0:02:27]} 35. Rxg1 {[%emt 0:00:44]} 1-0

[Event "French Top 16-A 2024"]
[Site "Chartres"]
[Date "2024.06.01"]
[Round "2.2"]
[White "Van Wely, Loek"]
[Black "Ter-Sahakyan, Samvel"]
[Result "1/2-1/2"]
[ECO "E16"]
[WhiteElo "2608"]
[BlackElo "2652"]
[Annotator "TA"]
[PlyCount "149"]
[EventDate "2024.06.01"]
[EventType "team-tourn"]
[EventCountry "FRA"]
[SourceTitle "playchess.com"]
[Source "ChessBase"]
[SourceQuality "1"]
[TimeControl "40/5400+30:1800+30"]

{[%evp 84,149,172,110,108,104,157,153,162,177,147,147,176,154,188,189,220,107,130,118,145,0,122,110,114,118,114,115,106,74,72,65,66,36,37,53,56,0,0,0,0,0,0,0,0,0,8,0,8,8,33,0,0,0,20,22,50,0,0,0,0,0,0,0,0,0,0,0]} 1. d4 {[%emt 0:00:04]} Nf6 {[%emt 0:00:56]} 2. c4 {[%emt 0:00:07]} e6 {[%emt 0:00:13]} 3. g3 {[%emt 0:00:08]} d5 {[%emt 0:04:03]} 4. Bg2 {[%emt 0:00:14]} Bb4+ {[%emt 0:03:29]} 5. Nd2 {[%emt 0:00:10]} O-O {[%emt 0:02:14]} 6. Ngf3 {[%emt 0:00:39]} b6 {[%emt 0:01:25]} 7. O-O {[%emt 0:02:09]} Bb7 {[%emt 0:00:12]} 8. Ne5 {[%emt 0:08:06]} Nc6 {[%emt 0:10:11]} 9. cxd5 {[%emt 0:08:48]} Nxe5 {[%emt 0:11:01]} 10. dxe5 {[%emt 0:00:23]} Nxd5 {[%emt 0:00:03]} 11. Nf3 {[%emt 0:09:35]} Be7 {[%emt 0:03:14]} 12. a3 {[%emt 0:08:42]} b5 {[%emt 0:15:18]} 13. Qd4 {[%emt 0:00:58]} h5 {[%emt 0:03:15]} 14. g4 {[%emt 0:08:06]} c5 {[%emt 0:27:09]} 15. Qe4 {[%emt 0:00:27]} Qa5 {[%emt 0:02:16]} 16. Ng5 {[%emt 0:09:21]} Bxg5 {[%emt 0:00:55]} 17. Bxg5 {[%emt 0:00:15]} Qa4 {[%emt 0:00:45]} 18. Qxa4 {[%emt 0:14:07]} bxa4 {[%emt 0:00:04]} 19. gxh5 {[%emt 0:00:09]} Ba6 {[%emt 0:06:10]} 20. Rfe1 {[%emt 0:08:06]} Rab8 {[%emt 0:00:31]} 21. e4 {[%emt 0:03:03]} Nb6 {[%emt 0:00:44]} 22. Be7 {[%emt 0:02:53]} Rfc8 {[%emt 0:00:26]} 23. Bd6 {[%emt 0:04:49]} Rb7 {[%emt 0:00:09]} 24. Rac1 {[%emt 0:00:08]} Bd3 {[%emt 0:02:13]} 25. Re3 {[%emt 0:02:02]} c4 {[%emt 0:00:10]} 26. f4 {[%emt 0:00:28]} Kh7 {[%emt 0:02:18]} 27. Bf3 {[%emt 0:02:57]} Rd8 {[%emt 0:01:08]} 28. Bb4 {[%emt 0:00:49]} Nd7 {[%emt 0:01:59]} 29. Be2 {[%emt 0:00:11]} Bxe2 {[%emt 0:00:56]} 30. Rxe2 {[%emt 0:00:04]} Nb6 {[%emt 0:00:04]} 31. Bd6 {[%emt 0:01:28]} Rc8 {[%emt 0:01:18]} 32. Rc3 {[%emt 0:01:25]} Rd7 {[%emt 0:01:05]} 33. Rg2 {[%emt 0:01:40]} Rdd8 {[%emt 0:00:25]} 34. Kf2 {[%emt 0:01:04]} Rc6 {[%emt 0:00:34]} 35. Rcg3 {[%emt 0:00:45]} Rg8 {[%emt 0:00:08]} 36. Ke2 {[%emt 0:02:11]} a5 {[%emt 0:00:49]} 37. Be7 {[%emt 0:00:33]} Rcc8 {[%emt 0:00:35]} 38. Kd2 {[%emt 0:00:36]} Nd7 {[%emt 0:00:26]} 39. Kc3 {[%emt 0:01:09]} Rb8 {[%emt 0:00:04]} 40. Kc2 {[%emt 0:00:40]} Rb3 {[%emt 0:00:40]} 41. Rd2 {[%emt 0:05:03]} Rb7 {[%emt 0:02:38]} 42. Bd6 {[%emt 0:00:35]} Rb3 {[%emt 0:01:42]} 43. Rc3 {[%emt 0:10:01]} (43. f5 $18) 43... Rc8 $16 {[%emt 0:05:34]} 44. Rg2 {[%emt 0:02:52]} Kh6 {[%emt 0:05:21]} (44... Nb8 $142) 45. f5 $16 {[%emt 0:01:42]} Re8 {[%emt 0:11:34]} 46. fxe6 {[%emt 0:05:15]} Rxe6 {[%emt 0:03:56]} 47. Rxc4 {[%emt 0:00:10]} Nxe5 {[%emt 0:00:09]} 48. Rxa4 {[%emt 0:03:35]} Rb7 {[%emt 0:01:51]} 49. Bf8 {[%emt 0:02:02]} (49. Rxa5 Nc4 50. Bf4+ Kh7 $14) 49... f6 {[%emt 0:00:13]} 50. Kb1 {[%emt 0:04:46]} (50. Rxa5 $18 {[%cal Og2g7] has better winning chances. And now Rxg7! would win.} Re8 51. Bb4) 50... Re8 {[%emt 0:01:33]} 51. Bd6 {[%emt 0:00:00]} Re6 {[%emt 0:00:37]} 52. Bf8 {[%emt 0:00:00]} Re8 $1 {[%emt 0:00:25] [#]} 53. Bc5 $1 {[%emt 0:00:00]} Nc6 {[%emt 0:00:10]} 54. Be3+ {[%emt 0:00:49]} Kxh5 {[%emt 0:00:08]} 55. Rc2 {[%emt 0:00:07]} Re6 {[%emt 0:00:21]} 56. Rc5+ {[%emt 0:00:48]} g5 {[%emt 0:00:04]} 57. Bd2 {[%emt 0:00:17]} Kg6 {[%emt 0:00:49]} 58. Be1 {[%emt 0:00:47]} Ne5 {[%emt 0:00:46]} 59. Rcxa5 {[%emt 0:00:56]} (59. Raxa5 $2 {perishes.} Nd3 60. Bc3 Nxc5 61. Rxc5 Rh7 $19 (61... Rxe4 62. Rc6 $17)) 59... Nf3 {[%emt 0:00:05]} 60. Bg3 {[%emt 0:00:22]} (60. Bc3 $14) 60... Nd2+ $11 {[%emt 0:00:04]} 61. Kc2 {[%emt 0:00:32]} Nxe4 {[%emt 0:00:08]} 62. Ra6 {[%emt 0:00:06]} Ree7 {[%emt 0:01:13]} 63. Rb4 {[%emt 0:00:41]} Rxb4 {[%emt 0:00:40]} 64. axb4 {[%emt 0:00:02]} Rb7 {[%emt 0:00:09]} 65. Be1 {[%emt 0:00:48]} Rh7 {[%emt 0:00:05]} 66. Kd3 {[%emt 0:00:34]} Rxh2 {[%emt 0:00:16]} 67. Re6 {[%emt 0:00:27]} (67. Kxe4 $5 Re2+ $8 (67... Rxb2 $2 {too greedy.} 68. Bc3 $18) 68. Kd4 Rxe1 69. b5 $11) 67... Nf2+ {[%emt 0:00:24]} 68. Kc4 {[%emt 0:00:26]} Ng4 {[%emt 0:00:39]} 69. Bc3 {[%emt 0:00:36]} Kf5 $1 {[%emt 0:00:08]} 70. Re8 {[%emt 0:00:34]} (70. Kd5 $14 Rh3 71. Re1) 70... Ne5+ $11 {[%emt 0:01:19]} 71. Kd5 {[%emt 0:00:08]} g4 {[%emt 0:01:10]} 72. b5 {[%emt 0:00:13]} g3 {[%emt 0:00:25]} 73. Bxe5 {[%emt 0:01:17]} fxe5 {[%emt 0:00:11]} 74. Rxe5+ {[%emt 0:00:23]} Kf4 {[%emt 0:00:35]} 75. Re1 $1 {[%emt 0:00:39]} 1/2-1/2